Cogmind - Beta 14 @@@ ROGUE MODE // 2025.03.08 @ 21:11:26 Player: Rudrot Result: Destroyed by G-47 Trooper with Particle Gun Performance ------------- Evolutions (2) 1000 Regions Visited (3) 600 Robots Destroyed (67) 335 Value Destroyed (2097) 2097 Prototype IDs (5) 100 Alien Tech Used (0) 0 Bonus (200) 200 TOTAL SCORE: 4332 Bonus ------- High Alert Combat Kills 200 Cogmind --------- Core Integrity 0/550 Matter 247/300 Energy 88/160 System Corruption 8% Temperature Cool (9) Movement Rolling (100) Location -8/Materials Parts ------- > --- POWER (2) -------- Light Nuclear Core > --- PROPULSION (2) --- Armored Huge Wheel > --- UTILITY (4) ------ Heat Sink Medium Storage Unit > --- WEAPON (3) ------- Particle Gun Katana > --- INVENTORY (10) --- Improved Heat Sink Improved Signal Interpreter Advanced Targeting Computer System Shield Subdweller Beam Cannon Peak State ------------ > --- POWER ------------ Light Deuterium Engine Light Nuclear Core > --- PROPULSION ------- Armored Huge Wheel > --- UTILITY ---------- Improved Heat Sink Medium Storage Unit Improved Signal Interpreter Particle Charger > --- WEAPON ----------- Improved Medium Laser Subdweller Laser Heavy Particle Cannon > --- INVENTORY -------- Armored Huge Wheel Armored Huge Wheel Improved Heat Sink Advanced Targeting Computer Improved Light Armor Plating Improved Medium Laser Subdweller Beam Cannon Grenade Launcher [Rating: 35] Favorites ----------- Power Ion Engine Engine Ion Engine Power Core Light Nuclear Core Propulsion Wheel Wheel Wheel Utility Medium Storage Unit Device Subdweller Optics Storage Medium Storage Unit Processor Improved Signal Interpreter Hackware Hacking Suite Protection Improved Light Armor Plating Weapon Improved Medium Laser Energy Gun Improved Medium Laser Energy Cannon Subdweller Beam Cannon Ballistic Gun Assault Rifle Launcher Mini Grenade Launcher Slashing Weapon Great Axe Build | -11 -10 -10 -8 ------- Run | Yrd Mat Sub Mat Slots Evolved 4 | . . . 4 Power 1 | . . . 1 Propulsion . | . . . . Utility 2 | . . . 2 Weapon 1 | . . . 1 Parts Attached 79 | 7 12 7 53 Power 9 | 1 1 1 6 Engine 7 | 1 1 1 4 Core 2 | . . . 2 Reactor . | . . . . Propulsion 25 | 2 3 3 17 Treads . | . . . . Leg . | . . . . Wheel 25 | 2 3 3 17 Hover . | . . . . Flight . | . . . . Utility 18 | 1 3 2 12 Device 11 | . . 2 9 Storage 2 | 1 1 . . Processor 2 | . 1 . 1 Hackware 1 | . 1 . . Protection 2 | . . . 2 Artifact . | . . . . Weapon 27 | 3 5 1 18 Energy Gun 9 | 1 4 1 3 Energy Cannon 9 | . . . 9 Ballistic Gun 2 | 2 . . . Ballistic Cannon . | . . . . Launcher 5 | . 1 . 4 Special Weapon . | . . . . Impact Weapon . | . . . . Slashing Weapon 2 | . . . 2 Piercing Weapon . | . . . . Special Melee Weapon . | . . . . Unidentified Prototypes . | . . . . Corrupted Parts 1 | . . . 1 System Corruption 5 | . . . 5 Parts Lost 26 | . 3 4 19 Power 4 | . . . 4 Propulsion 4 | . 1 1 2 Utility 7 | . 1 2 4 Weapon 11 | . 1 1 9 Highest Loss Streak 8 | . 3 3 8 To Critical Strikes . | . . . . Average Slot Usage (%) 91 | . 98 98 84 Engine 12 | . 14 14 11 Core 1 | . . . 2 Wheel 19 | . 27 27 10 Device 9 | . . 8 15 Storage 11 | . 14 14 9 Processor 4 | . 3 4 4 Hackware 2 | . 8 . . Protection 2 | . . . 4 Energy Gun 13 | . 11 27 8 Energy Cannon 7 | . . . 16 Ballistic Gun 5 | . 15 . . Peak Build Rating 35 | 6 14 15 35 Average Rating 18 | 3 9 12 27 On Entrance 7 | . 6 10 15 Naked Turns . | . . . . Heaviest Build 46 | 14 21 24 46 Greatest Support 40 | 20 26 40 40 Greatest Overweight (x) 2 | 2 2 1 2 Average Overweight (x) . | . . . . Largest Inventory Capacity 10 | 8 10 10 10 Average Capacity 9 | 5 9 10 10 Most Carried 10 | 1 7 10 10 Average Carried 6 | . 2 7 9 Final Capacity 10 | 8 10 10 10 Final Carried 9 | 1 5 9 5 Class Distribution -------------------- 48% | Mutant 21% | Scavenger-Gunner 19% | Scavenger-Tank 9% | Scavenger-Mutant Dominant Class ---------------- Mutant | -10/Materials Mutant | -10/Subcaves Scavenger-Gunner | -8/Materials Resources | -11 -10 -10 -8 ----------- Run | Yrd Mat Sub Mat Matter Collected 1170 | 188 389 50 543 Remotely . | . . . . Salvage Created 2475 | . 545 205 1725 Parts 145 | . 42 16 87 Haulers Intercepted . | . . . . Recyclers Shooed 1 | . . . 1 Parts Field Recycled . | . . . . Retrieved Matter . | . . . . Parts Self-Destructed 4 | . . 4 . Prevented . | . . . . Kills | -11 -10 -10 -8 ------- Run | Yrd Mat Sub Mat Combat Hostiles Destroyed 44 | . 13 5 26 Melee 3 | . . . 3 Guns 15 | . 9 4 2 Cannons 17 | . . . 17 AOE 7 | . 4 . 3 Classes Destroyed 13 | . 6 1 6 Worker 5 | . 2 . 3 Builder 4 | . . . 4 Recycler 4 | . . . 4 Mechanic 2 | . 1 . 1 Operator 1 | . 1 . . Watcher 7 | . 3 . 4 Swarmer 4 | . 3 . 1 Grunt 26 | . 10 . 16 Brawler 1 | . . . 1 Duelist 1 | . . . 1 Sentry 6 | . . . 6 Hunter 1 | . . . 1 Subdweller 5 | . . 5 . Best Kill Streak 16 | . 8 3 16 Combat Bots Only 6 | . 5 3 6 Max Kills in Single Turn 3 | . 2 1 3 Gunslinging 1 | . 1 . . Exploded 2 | . 1 . 2 Melee 1 | . . . 1 Uniques/NPCs Destroyed . | . . . . Combat | -11 -10 -10 -8 -------- Run | Yrd Mat Sub Mat Hostile Shots Fired 328 | . 74 23 231 Missed 94 | . 20 8 66 Damage Taken 3685 | . 617 343 2725 Core 781 | . 135 95 551 Absorbed by Shields . | . . . . Ignored by Resistances 4 | . . . 4 Core Remaining (%) 54 | 100 . 8 . Volleys Fired 128 | . 41 20 67 Largest 3 | . 2 2 3 Hottest 215 | . 112 112 215 Shots Fired 277 | . 78 36 163 Gun 161 | . 71 36 54 Cannon 99 | . . . 99 Launcher 17 | . 7 . 10 Special . | . . . . Kinetic 44 | . 44 . . Thermal 216 | . 27 36 153 Explosive 13 | . 7 . 6 Electromagnetic 4 | . . . 4 Robot Hit Streak 16 | . 7 12 16 Robot Miss Streak 7 | . 5 2 7 Penetration Max . | . . . . Secondary Targets 1 | . 1 . . Max Gunslinging Chain 1 | . 1 . . Shots Hit Robots 169 | . 40 29 100 Core Hits 93 | . 25 9 59 Critical Kills . | . . . . Critical Parts Destroyed 1 | . . . 1 Critical Strikes 11 | . 2 4 5 Burn 9 | . 2 4 3 Destroy 1 | . . . 1 Sever 1 | . . . 1 Melee Attacks 12 | . . . 12 Impact . | . . . . Slashing 12 | . . . 12 Piercing . | . . . . Sneak Attacks . | . . . . Combat Hostiles . | . . . . Follow-up Attacks . | . . . . Damage Inflicted 5268 | . 1025 461 3782 Guns 1709 | . 612 461 636 Cannons 1618 | . . . 1618 Explosions 1662 | . 413 . 1249 Melee 279 | . . . 279 Ramming . | . . . . Kinetic 321 | . 321 . . Thermal 3713 | . 291 461 2961 Explosive 656 | . 413 . 243 Electromagnetic 299 | . . . 299 Impact . | . . . . Slashing 279 | . . . 279 Piercing . | . . . . Highest Corruption 8 | . . . 8 Average Corruption 2 | . . . 2 Corruption Purged . | . . . . Corruption Blocked . | . . . . Effects 19 | . . . 19 Message Errors 5 | . . . 5 Matter Fused 4 | . . . 4 Heat Flow Errors 3 | . . . 3 Energy Discharges 2 | . . . 2 Data Loss (minor) 1 | . . . 1 Data Loss (major) 2 | . . . 2 Weapon Failures 2 | . . . 2 Overload Shots . | . . . . Overflow Damage 234 | . . . 234 Projectiles 26 | . . . 26 Explosions 182 | . . . 182 Melee 26 | . . . 26 Knockbacks . | . . . . Impact . | . . . . Kinetic . | . . . . Secondary . | . . . . Self-Inflicted Damage 77 | . . . 77 Shots 4 | . . . 4 Rammed . | . . . . Targets Rammed . | . . . . Kicked . | . . . . Crushed . | . . . . Highest Temperature 531 | . 383 21 531 Average Temperature 148 | . 155 9 155 Received Heat Transfer 1665 | . 252 90 1323 Effects 16 | . 2 . 14 Shutdowns 7 | . 1 . 6 Energy Bleed 1 | . 1 . . Interference 2 | . . . 2 Damage (major) 6 | . . . 6 Siege Activations . | . . . . Robots Corrupted . | . . . . Combat Hostiles . | . . . . Parts Fried . | . . . . Impact Corruptions . | . . . . Robots Melted 2 | . . 1 1 Combat Hostiles 2 | . . 1 1 Parts Melted 8 | . . 1 7 Heat Transferred 6353 | . 814 1369 4170 Parts Sabotaged . | . . . . Parts Stolen . | . . . . Parts Stripped . | . . . . Power Chain Reactions . | . . . . Alert | -11 -10 -10 -8 ------- Run | Yrd Mat Sub Mat Peak Influence 647 | . 290 . 647 Initial . | . . . . Average 243 | . 129 . 329 Maximum Alert Level 2 | . 1 . 2 Low Security (%) 58 | 100 86 . 38 Level 1 8 | . 13 . 4 Level 2 33 | . . . 56 Level 3 . | . . . . Level 4 . | . . . . Level 5 . | . . . . High Security . | . . . . Max Security . | . . . . Squads Dispatched 6 | . 2 . 4 Investigation 2 | . 1 . 1 Extermination . | . . . . Reinforcement 3 | . 1 . 2 Assault 1 | . . . 1 Garrison . | . . . . Intercept . | . . . . Searches Triggered . | . . . . Construction Impeded 2 | . . . 2 Haulers Reinforced . | . . . . Active Scanning Responses . | . . . . Cargo Convoy Interrupts . | . . . . Stealth | -11 -10 -10 -8 --------- Run | Yrd Mat Sub Mat Distress Signals 6 | . 2 . 4 Communications Jammed . | . . . . Distress Signals . | . . . . Times Spotted 74 | . 21 5 48 Peak Tracking Total 7 | . 5 2 7 Tactical Retreats 3 | . 1 . 2 Traps | -11 -10 -10 -8 ------- Run | Yrd Mat Sub Mat Traps Triggered 3 | . 1 . 2 Indirectly . | . . . . Trap Hack Attempts . | . . . . Triggered . | . . . . Disarmed . | . . . . Reprogrammed . | . . . . Reused . | . . . . Traps Extracted . | . . . . Installed . | . . . . Triggered . | . . . . Machines | -11 -10 -10 -8 ---------- Run | Yrd Mat Sub Mat Machines Disabled 7 | . 2 . 5 Max in Single Turn 2 | . 1 . 2 Machines Repaired . | . . . . Machines Dismantled . | . . . . Machines Sabotaged . | . . . . Overloaded Fab Kills . | . . . . Hacking | -11 -10 -10 -8 --------- Run | Yrd Mat Sub Mat Machines Accessed 11 | . 5 2 4 Terminals 8 | . 5 . 3 Fabricators . | . . . . Repair Stations . | . . . . Recycling Units . | . . . . Scanalyzers 1 | . . . 1 Garrison Access . | . . . . Total Hacks 28 | . 13 3 12 Successful 19 | . 7 3 9 Failed 9 | . 6 . 3 Catastrophic 1 | . 1 . . Database Lockouts . | . . . . Manual 2 | . . . 2 Terminals 22 | . 13 . 9 Fabricators . | . . . . Repair Stations . | . . . . Recycling Units . | . . . . Scanalyzers 3 | . . . 3 Garrison Access . | . . . . Terminal Hacks 18 | . 7 3 8 Record 6 | . . 1 5 Prototype ID Bank 3 | . 3 . . Open Door 1 | . . 1 . Emergency Access Points 1 | . . . 1 Terminal Index 1 | . . . 1 Alert Level 1 | . 1 . . Unreport Threat 1 | . 1 . . Locate Traps 1 | . 1 . . Registered Components 1 | . 1 . . Zone Layout 1 | . . . 1 Release Object 1 | . . 1 . Fabricator Hacks . | . . . . Repair Station Hacks . | . . . . Recycling Unit Hacks . | . . . . Scanalyzer 1 | . . . 1 Insert Component 1 | . . . 1 Garrison Access Hacks . | . . . . Unauthorized Hacks . | . . . . Terminals . | . . . . Fabricators . | . . . . Repair Stations . | . . . . Recycling Units . | . . . . Scanalyzers . | . . . . Garrison Access . | . . . . Data Cores Recovered 1 | . 1 . . Used 1 | . 1 . . Hacking Detections 5 | . 4 . 1 Full Trace Events 2 | . 1 . 1 Feedback Events . | . . . . Feedback Blocked . | . . . . Robot Schematics Acquired . | . . . . Robots Built . | . . . . Authchips . | . . . . Time . | . . . . Total Robot Build Rating . | . . . . Part Schematics Acquired . | . . . . Parts Built . | . . . . Authchips . | . . . . Time . | . . . . Total Part Build Rating . | . . . . Parts Repaired . | . . . . Time . | . . . . Parts Recycled . | . . . . Recycled Matter . | . . . . Retrieved Matter . | . . . . Retrieved Components . | . . . . Parts Scanalyzed 1 | . . . 1 Part Schematics Acquired . | . . . . Parts Damaged . | . . . . Bothacking | -11 -10 -10 -8 ------------ Run | Yrd Mat Sub Mat Used RIF Installer . | . . . . Robots Hacked . | . . . . Non-combat . | . . . . Combat . | . . . . Robot Hacks Applied . | . . . . Relay Couplers Released . | . . . . Fabnet Peak Effective % . | . . . . Robots Rewired . | . . . . Allies Hacked . | . . . . Hacks Repelled . | . . . . Allies | -11 -10 -10 -8 -------- Run | Yrd Mat Sub Mat Total Allies . | . . . . Largest Group . | . . . . Highest-Rated Group . | . . . . Highest-Rated Ally . | . . . . Total Orders . | . . . . Ally Attacks . | . . . . Total Damage . | . . . . Kills . | . . . . Allies Corrupted . | . . . . Allies Melted . | . . . . Intel | -11 -10 -10 -8 ------- Run | Yrd Mat Sub Mat Robot Analysis Total . | . . . . Derelict Logs Recovered 1 | . . 1 . Drone Launches . | . . . . Drone Recoveries . | . . . . Exploration | -11 -10 -10 -8 ------------- Run | Yrd Mat Sub Mat Turns Passed 3142 | 59 985 625 1473 Spaces Moved 2483 | 58 970 545 910 Core 30 | 30 . . . Treads . | . . . . Legs . | . . . . Wheels 2453 | 28 970 545 910 Hover . | . . . . Flight . | . . . . Fastest Speed 50 | 50 80 90 100 Average Speed 98 | 82 84 99 112 Slowest Speed 150 | 150 110 120 130 Overloaded Moves . | . . . . Propulsion Burnouts . | . . . . Robots Hopped . | . . . . Cave-ins Triggered . | . . . . Exploration Rate (%) 42 | 3 94 20 51 Regions Visited 3 Branch Regions 1 Pre-discovered Areas 1 | . . 1 . Known Exits Taken . | . . . . Unknown Exits Taken 3 | 1 1 1 . Scrap Searched . | . . . . Spaces Dug . | . . . . Terrain Destroyed 168 | . 42 . 126 Melee . | . . . . Projectile 20 | . . . 20 AOE 148 | . 42 . 106 Terrain Rammed . | . . . . Walls Destroyed . | . . . . Machines Disabled . | . . . . Actions | -11 -10 -10 -8 --------- Run | Yrd Mat Sub Mat Total 2922 | 65 1059 587 1211 Wait 132 | . 21 7 104 Move 2480 | 57 969 544 910 Hop . | . . . . Pick Up 34 | . 8 5 21 Fast Attach 37 | 7 2 4 24 Attach 24 | . 4 . 20 Detach 14 | 1 2 . 11 Swap 18 | . 6 3 9 Drop 42 | . 6 3 33 Fire 128 | . 41 20 67 Melee 12 | . . . 12 Ram . | . . . . Kick . | . . . . Crush . | . . . . Escape Stasis . | . . . . Rewire . | . . . . Trap . | . . . . Miscellaneous 1 | . . 1 . Route ------- -11/Scrapyard -10/Materials (discovered 6 exits: [*Mat x3] / [*Min x2] / *Sub) -10/Subcaves (discovered 2 exits: *Mat x2) -8/Materials (discovered 1 exit: *Fac) History --------- Turn | Location | Event 15 | -11/Scrapyard | Discovered new exit (range 15) 60 | -11/Scrapyard | Entered Materials 170 | -10/Materials | Discovered new exit (range 15) 270 | -10/Materials | Discovered new exit (range 3) 311 | -10/Materials | Build established: Mutant 388 | -10/Materials | Discovered new exit (range 9) 584 | -10/Materials | Discovered new exit (range 12) 743 | -10/Materials | Lost 3 parts (1n1u1w) 746 | -10/Materials | Discovered new exit (range 15) 760 | -10/Materials | Core integrity fell below 50% 1034 | -10/Materials | Discovered new exit (range 11) 1045 | -10/Materials | Entered Subcaves 1081 | -10/Subcaves | Discovered new exit (range 8) 1127 | -10/Subcaves | Learned location of Mines (-10) 1210 | -10/Subcaves | Discovered new exit (range 14) 1270 | -10/Subcaves | Shifting Twisted Machinery released Slug Cannon 1272 | -10/Subcaves | Shifting Twisted Machinery released Battle Cannon 1396 | -10/Subcaves | Core integrity fell below 20% 1454 | -10/Subcaves | Lost 3 parts (1n1u1w) 1602 | -10/Subcaves | Released subatomizers from SUBCON Basin 1670 | -10/Subcaves | Entered Materials 1670 | -8/Materials | Evolved 4 slots: Power x1, Utility x2, Weapon x1 2008 | -8/Materials | Build established: Scavenger-Tank 2351 | -8/Materials | Lost 3 parts (1p1u1w) 2395 | -8/Materials | Discovered new exit (range 14) 2623 | -8/Materials | Build established: Scavenger-Gunner 2670 | -8/Materials | Identified exit to Factory 2870 | -8/Materials | First assault squad dispatched 3059 | -8/Materials | Core integrity fell below 50% 3108 | -8/Materials | Lost 8 parts (1p1n2u4w) 3123 | -8/Materials | Core integrity fell below 20% 3143 | -8/Materials | Destroyed by G-47 Trooper with Particle Gun Last Messages --------------- Only a single melee weapon may be active at a time, Great Axe automatically deactivated. (Secondary inactive melee weapons have a chance to conduct follow-up attacks, see the manual.) 03112_ G-47 Trooper IFF system glitched. 03112_ G-47 Trooper destroyed. 03115_ System corrupted: Matter fused (-8). 03115_ EM Pulse Cannon destroyed. 03116_ Destroyed Aluminum Leg. 03117_ G-47 Trooper destroyed. 03118_ Arm. Huge Wheel destroyed. 03118_ Critical hit (Burn: +37). 03123_ G-47 Trooper destroyed. 03130_ G-47 Trooper Aluminum Leg severed. 03135_ V0>V00SBTNE4C3/TLVHR 03137_ Acquired Lgt. Nuclear Core. 03138_ Great Axe destroyed. 03139_ G-47 Trooper destroyed. 03143_ Acquired Particle Gun. Map ----- +----------------------------------------------------+ | ?????????????????????????????????????????????????? | | ?????????????????????????????????????????????????? | | ?????????????????????????????????????????????????? | | ?????????????????????????????????????????????????? | | ?????????????????????????????????????????????????? | | ????????????????????##########???????????????????? | | ??????###########???# #???????????????????? | | ??????# #???# """" #???????????????????? | | ??????# !/ ##### """" #???????????????????? | | ??????# / # # """" #???????????????????? | | ??????# ! # < # #???????????????????? | | ??????# # # #???????????????????? | | ??????# + + #???????????????????? | | ??????# # # "T" #???????????????????? | | ??????# # # """ #???????????????????? | | ??????###+####### ##########???????????????????? | | ??????# # #????????????????????? | | ??????# #% #????????????????????? | | ??????# !+ [! #????????????????????? | | ??????# =# !! ########?????????????? | | ??????# # # #?????????????? | | ??????# % ## #! """#?????????????? | | ??????# |* ## ! # Y"#?????????????? | | ??????# !!%= ## !!*=g + """#?????????????? | | ??????# %%==%! "# %!%%[!g# #?????????????? | | ??????####/###### !===@ # % ####??????????? | | ????????#[%###??# !% = #"""" "# ###???????## | | ????????##%#???## #####% ##############?????##! | | ????????##*##### #??# # #?????# ! | | #/#######%% #??# %# #?????# = | | = % T #??# %+ #?????# [ | | ?######## #??# #% #?????# | | ?????#####+##### #??# # % #?????# | | ?????#! ########??# #"############?????# | | ?????# #??? ????# # % # ########## | | ?????# """ #???" ""??#a # ############ | | ?????# """ #??"" """ # # % +!=% | | ?????# """ #??"" """ + + %#######"#### | | ?????# """ # # # %#!# ####?? | | ?????# """ # ??# # !# #####????? | | ?????# # ""T"????# # ###????????? | | ?????# ! #?""??????# # [ #??????????? | | ?????##########??######## #"""#######??????????? | | ?????????????????#[ ## ## # ####???????????? | | ?????????????????# "" ## #######??????????????? | | ???????########### ""S ## #????????????????????? | | ???????# ## " ## #????????????????????? | | ???????# T """ ## ## ##???????????????????? | | ???????# """ ## ## ! #???????????????????? | | ???????# " " #???????????????????? | +----------------------------------------------------+ Best States ------------- Heat Dissipation 55 Coolant Potential 50 Energy Generation 23 Energy Capacity 325 Matter Stores 300 Matter Capacity 300 Sight Range 21 Terrain Scan Density 10 Armor Coverage 300 Resistance: TH 10 Evasion (%) 50 Targeting Accuracy 5 Particle Charging 15 Offensive Hacking 10 Item Schematics ----------------- None Robot Schematics ------------------ None Fabricated ------------ Nothing Alien Tech Used ----------------- None Achievements -------------- Dynamic Key Challenges ------------ None Game ------ Seed AblativeChromaticGreatsword Manual? 0 Play Time 01:52:04 Cumulative 14.8 hours Start 2025.03.08 @ 00:14:54 End 2025.03.08 @ 21:11:26 Sessions 5 Manual Loads 0 Difficulty Rogue Special Mode None Game No. 9 Rogue 9 Adventurer 0 Explorer 0 Win Type - Total 0 Types 0/0/0/0/0/0/0/0/0 Lore% 4 Gallery% 10 Achievement% 12 Wizard Run 0 Options --------- Layout 1 ASCII 0 Keyboard 1 Movement Numpad Keybinds 0 Fullscreen 2 Font 24/Cog Map View 50x35 Zoom Use 2% Tactical HUD 1 Map Filters NONE Filters NONE Steam 1 RUN: 867c6529-1faf-4b7b-aac4-e73a6012c570